[Event "*** SCC Grand Prix: Titled Tuesday Blitz"]
[Site "Chess.com"]
[Date "2020.08.04"]
[Round "3"]
[White "spicycaterpillar"]
[Black "ElGasanov"]
[Result "0-1"]
[WhiteElo "2991"]
[BlackElo "2774"]
[TimeControl "180+1"]
[EndTime "14:12:10 PDT"]
[Termination "ElGasanov won by resignation"]

1. e4 {[%clk 0:03:00.9]} 1... c5 {[%clk 0:03:00.3]} 2. Nf3 {[%clk 0:03:00.8]}
2... Nc6 {[%clk 0:03:00.7]} 3. Bb5 {[%clk 0:02:59.4]} 3... Nf6 {[%clk
0:02:59.8]} 4. Nc3 {[%clk 0:02:57.1]} 4... d6 {[%clk 0:02:59.6]} 5. d4 {[%clk
0:02:43.7]} 5... cxd4 {[%clk 0:02:58.3]} 6. Nxd4 {[%clk 0:02:41.2]} 6... Bd7
{[%clk 0:02:57.9]} 7. Bg5 {[%clk 0:02:28.3]} 7... e6 {[%clk 0:02:47.9]} 8. Bxc6
{[%clk 0:01:48.1]} 8... bxc6 {[%clk 0:02:40.9]} 9. f4 {[%clk 0:01:47.9]} 9...
Qb6 {[%clk 0:02:07.1]} 10. Qd2 {[%clk 0:01:42.5]} 10... h6 {[%clk 0:01:46.9]}
11. Bh4 {[%clk 0:01:30.5]} 11... Be7 {[%clk 0:01:45.6]} 12. e5 {[%clk
0:01:27.2]} 12... dxe5 {[%clk 0:01:37.9]} 13. fxe5 {[%clk 0:01:28.1]} 13... Ne4
{[%clk 0:01:36.1]} 14. Nxe4 {[%clk 0:01:26.8]} 14... Bxh4+ {[%clk 0:01:36.6]}
15. g3 {[%clk 0:01:27.3]} 15... Be7 {[%clk 0:01:35.4]} 16. O-O {[%clk
0:01:26.3]} 16... O-O {[%clk 0:01:28.9]} 17. Nf6+ {[%clk 0:01:02.4]} 17... Bxf6
{[%clk 0:01:20.3]} 18. exf6 {[%clk 0:01:03.3]} 18... e5 {[%clk 0:01:18.4]} 19.
c3 {[%clk 0:00:29.9]} 19... exd4 {[%clk 0:01:09.5]} 20. cxd4 {[%clk 0:00:30.8]}
20... Rae8 {[%clk 0:00:48.2]} 21. Rf4 {[%clk 0:00:28.9]} 21... g5 {[%clk
0:00:44.1]} 22. Rf2 {[%clk 0:00:19.5]} 22... Re4 {[%clk 0:00:41.5]} 23. Rd1
{[%clk 0:00:18.1]} 23... Bg4 {[%clk 0:00:40.8]} 24. Qd3 {[%clk 0:00:10]} 24...
Rfe8 {[%clk 0:00:41.3]} 25. Rdd2 {[%clk 0:00:10.1]} 25... Bh3 {[%clk 0:00:38.8]}
26. Rf1 {[%clk 0:00:02.3]} 26... Bxf1 {[%clk 0:00:37.5]} 0-1

[Event "*** SCC Grand Prix: Titled Tuesday Blitz"]
[Site "Chess.com"]
[Date "2020.08.04"]
[Round "3"]
[White "volcanoexplorer"]
[Black "ChessSwole"]
[Result "0-1"]
[WhiteElo "2542"]
[BlackElo "2369"]
[TimeControl "180+1"]
[EndTime "14:12:22 PDT"]
[Termination "ChessSwole won by resignation"]

1. e4 {[%clk 0:03:00.9]} 1... d5 {[%clk 0:02:53.1]} 2. exd5 {[%clk 0:03:00.6]}
2... Qxd5 {[%clk 0:02:54]} 3. Nc3 {[%clk 0:03:01]} 3... Qd6 {[%clk 0:02:54.5]}
4. Nf3 {[%clk 0:03:00.5]} 4... Nf6 {[%clk 0:02:55.1]} 5. d4 {[%clk 0:02:56.3]}
5... g6 {[%clk 0:02:55.3]} 6. Bc4 {[%clk 0:02:56.2]} 6... Bg7 {[%clk 0:02:55.7]}
7. h3 {[%clk 0:02:55.5]} 7... O-O {[%clk 0:02:56]} 8. O-O {[%clk 0:02:55.9]}
8... a6 {[%clk 0:02:56.2]} 9. a4 {[%clk 0:02:55.8]} 9... Nc6 {[%clk 0:02:49]}
10. Be3 {[%clk 0:02:44.6]} 10... Nb4 {[%clk 0:02:40.6]} 11. Ne5 {[%clk
0:02:35.2]} 11... Bf5 {[%clk 0:02:39.3]} 12. Bb3 {[%clk 0:02:23.2]} 12... Rad8
{[%clk 0:02:36.1]} 13. Re1 {[%clk 0:01:47]} 13... c5 {[%clk 0:02:31.5]} 14. Nf3
{[%clk 0:01:06.2]} 14... c4 {[%clk 0:02:30.3]} 15. Bxc4 {[%clk 0:01:00.9]} 15...
Nxc2 {[%clk 0:02:29.7]} 16. Ne5 {[%clk 0:00:55.3]} 16... Nxa1 {[%clk 0:02:21.7]}
17. Qxa1 {[%clk 0:00:55.9]} 17... Be6 {[%clk 0:01:52.6]} 18. Bf1 {[%clk
0:00:54.7]} 18... Bd5 {[%clk 0:01:36.7]} 19. Nxd5 {[%clk 0:00:55.1]} 19... Nxd5
{[%clk 0:01:35.9]} 20. Nc4 {[%clk 0:00:50.8]} 20... Qd7 {[%clk 0:01:29]} 21. a5
{[%clk 0:00:35.9]} 21... Nxe3 {[%clk 0:01:26.5]} 22. fxe3 {[%clk 0:00:36.8]}
22... e5 {[%clk 0:01:18.3]} 23. Nb6 {[%clk 0:00:36.6]} 23... Qd6 {[%clk
0:01:10.5]} 24. d5 {[%clk 0:00:33.7]} 24... e4 {[%clk 0:01:10.8]} 25. Qa4 {[%clk
0:00:18.2]} 25... Rfe8 {[%clk 0:01:05.2]} 26. Qc2 {[%clk 0:00:14.9]} 26... Qb4
{[%clk 0:01:02.6]} 27. Rd1 {[%clk 0:00:12.4]} 27... Qxa5 {[%clk 0:00:51.8]} 28.
Nc4 {[%clk 0:00:10.6]} 28... Qc5 {[%clk 0:00:52.2]} 29. Qb3 {[%clk 0:00:09.3]}
29... Rxd5 {[%clk 0:00:47.7]} 30. Rc1 {[%clk 0:00:06.7]} 30... b5 {[%clk
0:00:41.2]} 31. Nd2 {[%clk 0:00:03.8]} 31... Qxc1 {[%clk 0:00:35.7]} 32. Qxd5
{[%clk 0:00:04.1]} 32... Qxb2 {[%clk 0:00:35]} 33. Nxe4 {[%clk 0:00:04.1]} 33...
Qe5 {[%clk 0:00:35.6]} 0-1

[Event "*** SCC Grand Prix: Titled Tuesday Blitz"]
[Site "Chess.com"]
[Date "2020.08.04"]
[Round "3"]
[White "Manukyan_Artak"]
[Black "Dr-Bassem"]
[Result "0-1"]
[WhiteElo "2452"]
[BlackElo "2783"]
[TimeControl "180+1"]
[EndTime "14:12:32 PDT"]
[Termination "Dr-Bassem won by resignation"]

1. e4 {[%clk 0:02:49.1]} 1... e5 {[%clk 0:02:58.6]} 2. Nf3 {[%clk 0:02:48.6]}
2... Nc6 {[%clk 0:02:59.1]} 3. d4 {[%clk 0:02:49.4]} 3... exd4 {[%clk
0:02:59.1]} 4. Nxd4 {[%clk 0:02:50.3]} 4... Nf6 {[%clk 0:02:59.4]} 5. Nxc6
{[%clk 0:02:50.4]} 5... bxc6 {[%clk 0:03:00.3]} 6. e5 {[%clk 0:02:50]} 6... Qe7
{[%clk 0:03:00.4]} 7. Qe2 {[%clk 0:02:50.1]} 7... Nd5 {[%clk 0:03:01.1]} 8. c4
{[%clk 0:02:50.7]} 8... Ba6 {[%clk 0:03:01.1]} 9. h4 {[%clk 0:02:48.7]} 9...
O-O-O {[%clk 0:02:42.5]} 10. a3 {[%clk 0:02:15.9]} 10... Re8 {[%clk 0:02:38.5]}
11. f4 {[%clk 0:02:14.9]} 11... f6 {[%clk 0:02:38]} 12. Qd2 {[%clk 0:02:07.2]}
12... Nb6 {[%clk 0:02:31.5]} 13. Qa5 {[%clk 0:02:06.8]} 13... Bb7 {[%clk
0:02:22.8]} 14. Qxa7 {[%clk 0:01:55.4]} 14... fxe5 {[%clk 0:02:17.4]} 15. f5
{[%clk 0:01:55.1]} 15... Qc5 {[%clk 0:01:58.9]} 16. Nc3 {[%clk 0:01:47.9]} 16...
e4 {[%clk 0:01:58.8]} 17. Rh3 {[%clk 0:01:42.7]} 17... Qxf5 {[%clk 0:01:51.2]}
18. Be3 {[%clk 0:01:39.5]} 18... Bc5 {[%clk 0:01:49.7]} 19. O-O-O {[%clk
0:01:34]} 19... Bxe3+ {[%clk 0:01:23.2]} 20. Rxe3 {[%clk 0:01:34.9]} 20... Re5
{[%clk 0:01:23.1]} 21. c5 {[%clk 0:01:20.5]} 21... Rxc5 {[%clk 0:01:22.1]} 22.
Ba6 {[%clk 0:01:20.7]} 22... Bxa6 {[%clk 0:01:20.2]} 23. Qxa6+ {[%clk 0:01:21]}
23... Kb8 {[%clk 0:01:19.9]} 24. Kb1 {[%clk 0:01:09.4]} 24... Re8 {[%clk
0:01:14.5]} 25. Qe2 {[%clk 0:00:44.7]} 25... Rce5 {[%clk 0:01:02.7]} 26. g4
{[%clk 0:00:42.2]} 26... Qe6 {[%clk 0:00:59.9]} 27. Qg2 {[%clk 0:00:36.4]} 27...
Qb3 {[%clk 0:00:47.9]} 28. Qd2 {[%clk 0:00:23.7]} 28... Nc4 {[%clk 0:00:45]} 29.
Qc1 {[%clk 0:00:15.7]} 29... Nxa3+ {[%clk 0:00:41.4]} 30. Ka1 {[%clk 0:00:14.5]}
30... Nc4 {[%clk 0:00:35.9]} 31. Re2 {[%clk 0:00:07.5]} 31... Ra5+ {[%clk
0:00:34.6]} 32. Kb1 {[%clk 0:00:07.5]} 32... Na3+ {[%clk 0:00:35.2]} 0-1

[Event "*** SCC Grand Prix: Titled Tuesday Blitz"]
[Site "Chess.com"]
[Date "2020.08.04"]
[Round "3"]
[White "killer311"]
[Black "wannabe2700"]
[Result "0-1"]
[WhiteElo "2423"]
[BlackElo "2674"]
[TimeControl "180+1"]
[EndTime "14:12:32 PDT"]
[Termination "wannabe2700 won by resignation"]

1. d4 {[%clk 0:03:00.9]} 1... Nf6 {[%clk 0:02:59]} 2. c4 {[%clk 0:03:01.2]} 2...
c5 {[%clk 0:02:58.6]} 3. d5 {[%clk 0:03:00.9]} 3... e6 {[%clk 0:02:59.1]} 4. Nc3
{[%clk 0:03:01]} 4... exd5 {[%clk 0:02:59.8]} 5. cxd5 {[%clk 0:03:01.9]} 5... d6
{[%clk 0:03:00.7]} 6. g3 {[%clk 0:03:02.2]} 6... g6 {[%clk 0:03:01.6]} 7. Bg2
{[%clk 0:03:02.6]} 7... Bg7 {[%clk 0:03:02.5]} 8. Nf3 {[%clk 0:03:03.1]} 8...
O-O {[%clk 0:03:03.4]} 9. O-O {[%clk 0:03:03.5]} 9... Re8 {[%clk 0:03:03.6]} 10.
Re1 {[%clk 0:03:03.6]} 10... h6 {[%clk 0:03:01.1]} 11. e4 {[%clk 0:03:00.1]}
11... Na6 {[%clk 0:02:59.9]} 12. Bf4 {[%clk 0:02:53.6]} 12... Nc7 {[%clk
0:02:58.6]} 13. a4 {[%clk 0:02:53.3]} 13... Nh5 {[%clk 0:02:54.9]} 14. Be3
{[%clk 0:02:48.6]} 14... f5 {[%clk 0:02:49.8]} 15. exf5 {[%clk 0:02:31.7]} 15...
Bxf5 {[%clk 0:02:43.9]} 16. Nh4 {[%clk 0:02:31.1]} 16... Nf6 {[%clk 0:02:23.9]}
17. Nxf5 {[%clk 0:02:29.8]} 17... gxf5 {[%clk 0:02:24.8]} 18. Qd3 {[%clk
0:02:26.7]} 18... Qd7 {[%clk 0:02:21.3]} 19. Bh3 {[%clk 0:02:25.6]} 19... Ng4
{[%clk 0:02:21.3]} 20. Bf4 {[%clk 0:02:16.5]} 20... Rf8 {[%clk 0:02:16.3]} 21.
Re2 {[%clk 0:02:11.1]} 21... Ne5 {[%clk 0:01:57.5]} 22. Qc2 {[%clk 0:02:04.4]}
22... Nf3+ {[%clk 0:01:57.3]} 23. Kg2 {[%clk 0:02:04.1]} 23... Nd4 {[%clk
0:01:58.2]} 24. Qd3 {[%clk 0:02:03.9]} 24... Nxe2 {[%clk 0:01:58.3]} 25. Qxe2
{[%clk 0:02:04.8]} 25... Rae8 {[%clk 0:01:58.1]} 26. Qd3 {[%clk 0:02:00.1]}
26... a6 {[%clk 0:01:54.9]} 27. Qd2 {[%clk 0:01:58.6]} 27... Kh7 {[%clk
0:01:51.1]} 28. Nd1 {[%clk 0:01:53.7]} 28... Re4 {[%clk 0:01:45.7]} 29. Ne3
{[%clk 0:01:52.4]} 29... Rd4 {[%clk 0:01:43.3]} 30. Qc2 {[%clk 0:01:47.9]} 30...
Kh8 {[%clk 0:01:41.7]} 31. Nxf5 {[%clk 0:01:33.8]} 31... Rxd5 {[%clk 0:01:40.3]}
32. Ne3 {[%clk 0:01:19.5]} 32... Qc6 {[%clk 0:01:37.8]} 33. Nxd5 {[%clk
0:01:18.8]} 33... Nxd5 {[%clk 0:01:38.7]} 34. Kg1 {[%clk 0:01:13.9]} 34... Nxf4
{[%clk 0:01:37.2]} 35. gxf4 {[%clk 0:01:14.8]} 35... Qf3 {[%clk 0:01:33.6]} 36.
Bg2 {[%clk 0:01:12]} 36... Qxf4 {[%clk 0:01:34.2]} 37. Re1 {[%clk 0:01:11]}
37... Be5 {[%clk 0:01:33.8]} 38. Re4 {[%clk 0:01:02.8]} 38... Qxh2+ {[%clk
0:01:33.1]} 39. Kf1 {[%clk 0:01:02.7]} 39... Rg8 {[%clk 0:01:25.2]} 40. Bf3
{[%clk 0:00:55]} 40... Bd4 {[%clk 0:01:18]} 41. Rg4 {[%clk 0:00:46.7]} 41...
Qh3+ {[%clk 0:01:15.9]} 42. Rg2 {[%clk 0:00:43.1]} 42... Qxf3 {[%clk 0:01:09.2]}
43. Rxg8+ {[%clk 0:00:42.6]} 43... Kxg8 {[%clk 0:01:10.1]} 44. Qg6+ {[%clk
0:00:43.2]} 44... Kf8 {[%clk 0:01:05.6]} 45. Qxd6+ {[%clk 0:00:43]} 45... Ke8
{[%clk 0:01:06.1]} 46. Qe6+ {[%clk 0:00:42.6]} 46... Kd8 {[%clk 0:01:06.2]} 47.
Qd6+ {[%clk 0:00:42.6]} 47... Kc8 {[%clk 0:01:06.6]} 48. Qe6+ {[%clk 0:00:41.4]}
48... Kc7 {[%clk 0:01:07]} 49. Qe7+ {[%clk 0:00:38.1]} 49... Kb8 {[%clk
0:01:07.1]} 50. Qd8+ {[%clk 0:00:36.8]} 50... Ka7 {[%clk 0:01:07.4]} 51. Qh4
{[%clk 0:00:36.3]} 51... h5 {[%clk 0:01:04]} 0-1

[Event "*** SCC Grand Prix: Titled Tuesday Blitz"]
[Site "Chess.com"]
[Date "2020.08.04"]
[Round "3"]
[White "Bodnar_Mykola"]
[Black "German_Bazeev"]
[Result "0-1"]
[WhiteElo "2444"]
[BlackElo "2733"]
[TimeControl "180+1"]
[EndTime "14:12:40 PDT"]
[Termination "German_Bazeev won by resignation"]

1. d4 {[%clk 0:03:00.9]} 1... Nf6 {[%clk 0:02:58.6]} 2. c4 {[%clk 0:03:00.6]}
2... g6 {[%clk 0:02:59.5]} 3. Nc3 {[%clk 0:03:00.4]} 3... d5 {[%clk 0:02:59.4]}
4. Nf3 {[%clk 0:03:00.1]} 4... Bg7 {[%clk 0:02:59.4]} 5. h4 {[%clk 0:03:00.4]}
5... c6 {[%clk 0:02:56.9]} 6. Bg5 {[%clk 0:02:58.8]} 6... dxc4 {[%clk
0:02:55.2]} 7. e4 {[%clk 0:02:58]} 7... b5 {[%clk 0:02:54]} 8. e5 {[%clk
0:02:53.5]} 8... Nd5 {[%clk 0:02:53]} 9. h5 {[%clk 0:02:53.7]} 9... h6 {[%clk
0:02:51.1]} 10. hxg6 {[%clk 0:02:50.5]} 10... fxg6 {[%clk 0:02:38.1]} 11. Bd2
{[%clk 0:02:37.6]} 11... Nxc3 {[%clk 0:02:11.2]} 12. bxc3 {[%clk 0:02:38.5]}
12... Qd5 {[%clk 0:02:05]} 13. Be2 {[%clk 0:02:14]} 13... g5 {[%clk 0:01:33.2]}
14. Qc2 {[%clk 0:02:03.6]} 14... Qf7 {[%clk 0:01:18.1]} 15. Qd1 {[%clk
0:01:41.4]} 15... Bf5 {[%clk 0:01:15.3]} 16. a4 {[%clk 0:01:37.7]} 16... Qd5
{[%clk 0:01:09.1]} 17. axb5 {[%clk 0:01:35.9]} 17... cxb5 {[%clk 0:01:08.1]} 18.
g4 {[%clk 0:01:05.4]} 18... Be4 {[%clk 0:01:05.5]} 19. Rh3 {[%clk 0:01:05.4]}
19... Nc6 {[%clk 0:01:01.9]} 20. Ra6 {[%clk 0:00:56.3]} 20... O-O-O {[%clk
0:00:53.4]} 21. Qa1 {[%clk 0:00:51.9]} 21... Kb7 {[%clk 0:00:40.8]} 22. Be3
{[%clk 0:00:40.3]} 22... Rhf8 {[%clk 0:00:33.1]} 23. Nd2 {[%clk 0:00:40.4]}
23... Bd3 {[%clk 0:00:29.3]} 24. Bf3 {[%clk 0:00:38.7]} 24... Rxf3 {[%clk
0:00:29]} 25. Rxf3 {[%clk 0:00:36.3]} 25... b4 {[%clk 0:00:22.5]} 26. cxb4
{[%clk 0:00:30.9]} 26... c3 {[%clk 0:00:22.3]} 27. Qxc3 {[%clk 0:00:28.7]} 27...
Bxa6 {[%clk 0:00:21.2]} 28. Rh3 {[%clk 0:00:12]} 28... Qb5 {[%clk 0:00:20.6]}
29. Kd1 {[%clk 0:00:09.3]} 29... Nxb4 {[%clk 0:00:18.2]} 30. Ne4 {[%clk
0:00:03.5]} 30... Qe2+ {[%clk 0:00:17.5]} 0-1

[Event "*** SCC Grand Prix: Titled Tuesday Blitz"]
[Site "Chess.com"]
[Date "2020.08.04"]
[Round "3"]
[White "Caterpiller35"]
[Black "Isajevsky_Anton"]
[Result "0-1"]
[WhiteElo "2379"]
[BlackElo "2585"]
[TimeControl "180+1"]
[EndTime "14:12:45 PDT"]
[Termination "Isajevsky_Anton won by resignation"]

1. d4 {[%clk 0:03:00.9]} 1... Nf6 {[%clk 0:02:59.3]} 2. Bg5 {[%clk 0:03:00.8]}
2... e6 {[%clk 0:02:52.1]} 3. e4 {[%clk 0:03:00.7]} 3... h6 {[%clk 0:02:51]} 4.
Bxf6 {[%clk 0:03:01.2]} 4... Qxf6 {[%clk 0:02:51.4]} 5. c3 {[%clk 0:03:02]} 5...
b6 {[%clk 0:02:48]} 6. Bd3 {[%clk 0:03:01]} 6... Bb7 {[%clk 0:02:48.3]} 7. Ne2
{[%clk 0:03:01.6]} 7... Qe7 {[%clk 0:02:43.7]} 8. O-O {[%clk 0:03:01.1]} 8... g6
{[%clk 0:02:42.6]} 9. f4 {[%clk 0:03:00.9]} 9... Bg7 {[%clk 0:02:42.7]} 10. Nd2
{[%clk 0:03:01.2]} 10... d6 {[%clk 0:02:33]} 11. a4 {[%clk 0:02:54]} 11... a6
{[%clk 0:02:31.7]} 12. e5 {[%clk 0:02:37.3]} 12... Nd7 {[%clk 0:02:29.1]} 13.
Be4 {[%clk 0:02:37.4]} 13... d5 {[%clk 0:02:28.6]} 14. Bc2 {[%clk 0:02:35.6]}
14... c5 {[%clk 0:02:23.4]} 15. Nf3 {[%clk 0:02:29.5]} 15... h5 {[%clk
0:01:36.4]} 16. Qb1 {[%clk 0:02:27.4]} 16... Bf8 {[%clk 0:01:30]} 17. Ng5 {[%clk
0:02:23.9]} 17... O-O-O {[%clk 0:01:20.6]} 18. b4 {[%clk 0:02:00.2]} 18... cxb4
{[%clk 0:01:18]} 19. cxb4 {[%clk 0:01:59.6]} 19... Kb8 {[%clk 0:01:18.2]} 20.
Bd3 {[%clk 0:01:58.4]} 20... Bh6 {[%clk 0:01:16.9]} 21. h4 {[%clk 0:01:38.5]}
21... Rc8 {[%clk 0:01:16.6]} 22. Qb2 {[%clk 0:01:27.2]} 22... Rc7 {[%clk
0:01:16.8]} 23. Rac1 {[%clk 0:01:26.2]} 23... Rhc8 {[%clk 0:01:17.3]} 24. Rxc7
{[%clk 0:01:23]} 24... Rxc7 {[%clk 0:01:18.2]} 25. Rc1 {[%clk 0:01:12.4]} 25...
Rxc1+ {[%clk 0:00:53.6]} 26. Nxc1 {[%clk 0:01:05.2]} 26... Ka7 {[%clk
0:00:53.5]} 27. Ne2 {[%clk 0:01:03.3]} 27... Nb8 {[%clk 0:00:52.3]} 28. Qc3
{[%clk 0:01:02.6]} 28... Nc6 {[%clk 0:00:49.3]} 29. b5 {[%clk 0:01:01.9]} 29...
Nb4 {[%clk 0:00:49.2]} 30. bxa6 {[%clk 0:00:58.9]} 30... Nxa6 {[%clk 0:00:49.3]}
31. a5 {[%clk 0:00:53.2]} 31... Bxg5 {[%clk 0:00:44.6]} 32. fxg5 {[%clk
0:00:47.5]} 32... bxa5 {[%clk 0:00:39.2]} 33. Qxa5 {[%clk 0:00:46.9]} 33... Qb4
{[%clk 0:00:39.6]} 34. Qxb4 {[%clk 0:00:37.8]} 34... Nxb4 {[%clk 0:00:40.5]} 35.
Nf4 {[%clk 0:00:31.6]} 35... Bc6 {[%clk 0:00:35.9]} 36. Bxg6 {[%clk 0:00:27.5]}
36... fxg6 {[%clk 0:00:35.8]} 37. Nxg6 {[%clk 0:00:27.9]} 37... Nd3 {[%clk
0:00:32.2]} 38. Nf4 {[%clk 0:00:28.1]} 38... Nxf4 {[%clk 0:00:31.5]} 39. g3
{[%clk 0:00:23.9]} 39... Ng6 {[%clk 0:00:31.4]} 40. g4 {[%clk 0:00:23.1]} 40...
Nxh4 {[%clk 0:00:28.5]} 41. gxh5 {[%clk 0:00:22.8]} 41... Be8 {[%clk 0:00:29.1]}
42. g6 {[%clk 0:00:21.2]} 42... Nxg6 {[%clk 0:00:28.7]} 43. hxg6 {[%clk
0:00:22.1]} 43... Bxg6 {[%clk 0:00:29.1]} 0-1

[Event "*** SCC Grand Prix: Titled Tuesday Blitz"]
[Site "Chess.com"]
[Date "2020.08.04"]
[Round "3"]
[White "Dedic8"]
[Black "Lucas_Tomiello"]
[Result "1-0"]
[WhiteElo "2789"]
[BlackElo "2455"]
[TimeControl "180+1"]
[EndTime "14:12:49 PDT"]
[Termination "Dedic8 won by resignation"]

1. e4 {[%clk 0:03:00.9]} 1... c5 {[%clk 0:03:00.2]} 2. Nf3 {[%clk 0:02:57.5]}
2... d6 {[%clk 0:03:00.5]} 3. d4 {[%clk 0:02:58]} 3... cxd4 {[%clk 0:03:01.2]}
4. Nxd4 {[%clk 0:02:58.9]} 4... Nf6 {[%clk 0:03:01.8]} 5. Nc3 {[%clk 0:02:59.6]}
5... a6 {[%clk 0:03:02.3]} 6. h3 {[%clk 0:03:00.3]} 6... e5 {[%clk 0:03:01.3]}
7. Nde2 {[%clk 0:03:00.8]} 7... b5 {[%clk 0:03:01.5]} 8. Ng3 {[%clk 0:03:00.1]}
8... Be6 {[%clk 0:02:57.4]} 9. a4 {[%clk 0:02:48.8]} 9... b4 {[%clk 0:02:53.3]}
10. Nd5 {[%clk 0:02:49.2]} 10... Bxd5 {[%clk 0:02:49.8]} 11. exd5 {[%clk
0:02:50.1]} 11... g6 {[%clk 0:02:45.5]} 12. Bc4 {[%clk 0:02:47.9]} 12... Bg7
{[%clk 0:02:44.2]} 13. O-O {[%clk 0:02:47.7]} 13... O-O {[%clk 0:02:43.9]} 14.
a5 {[%clk 0:02:46.2]} 14... Nbd7 {[%clk 0:02:39]} 15. Bd2 {[%clk 0:02:37.8]}
15... Qc7 {[%clk 0:02:20.8]} 16. Qe2 {[%clk 0:02:32.5]} 16... Qc5 {[%clk
0:02:02.5]} 17. Be3 {[%clk 0:02:21.2]} 17... Qc7 {[%clk 0:02:00.4]} 18. Rfd1
{[%clk 0:02:19.1]} 18... Nc5 {[%clk 0:01:57.5]} 19. Bxc5 {[%clk 0:01:21]} 19...
Qxc5 {[%clk 0:01:56.5]} 20. Bxa6 {[%clk 0:01:21.9]} 20... Rfb8 {[%clk
0:01:10.2]} 21. Qc4 {[%clk 0:01:16.5]} 21... Nd7 {[%clk 0:00:55.9]} 22. Ne4
{[%clk 0:01:07.7]} 22... Qxc4 {[%clk 0:00:53.6]} 23. Bxc4 {[%clk 0:01:08.6]}
23... Bf8 {[%clk 0:00:52.4]} 24. g4 {[%clk 0:01:06.4]} 24... f5 {[%clk
0:00:50.5]} 25. gxf5 {[%clk 0:01:06.7]} 25... gxf5 {[%clk 0:00:51.4]} 26. Ng3
{[%clk 0:01:07.4]} 26... f4 {[%clk 0:00:35.9]} 27. Ne4 {[%clk 0:01:07.2]} 27...
Kf7 {[%clk 0:00:34]} 28. Kg2 {[%clk 0:01:05.4]} 28... Nf6 {[%clk 0:00:33.9]} 29.
Kf3 {[%clk 0:01:04]} 29... Nxe4 {[%clk 0:00:33.6]} 30. Kxe4 {[%clk 0:01:04.9]}
30... Be7 {[%clk 0:00:31.4]} 31. a6 {[%clk 0:01:04.4]} 31... Ra7 {[%clk
0:00:28.1]} 32. Rg1 {[%clk 0:01:02.7]} 32... Bd8 {[%clk 0:00:27]} 33. Ra4 {[%clk
0:00:58.6]} 33... Kf6 {[%clk 0:00:15.9]} 34. Rg8 {[%clk 0:00:57.7]} 34... Bc7
{[%clk 0:00:16]} 35. Rxb8 {[%clk 0:00:56.3]} 35... Bxb8 {[%clk 0:00:16.9]} 36.
Rxb4 {[%clk 0:00:57.2]} 36... Bc7 {[%clk 0:00:17.3]} 37. Rb3 {[%clk 0:00:50]}
37... h6 {[%clk 0:00:16.4]} 38. Be2 {[%clk 0:00:48.1]} 38... Kg5 {[%clk
0:00:15]} 39. Rb7 {[%clk 0:00:44.7]} 39... Rxb7 {[%clk 0:00:15]} 40. axb7 {[%clk
0:00:45.6]} 40... Kf6 {[%clk 0:00:14.6]} 41. b4 {[%clk 0:00:46.2]} 41... Ke7
{[%clk 0:00:14.4]} 42. c4 {[%clk 0:00:46.8]} 42... Bb8 {[%clk 0:00:10.3]} 43. c5
{[%clk 0:00:47]} 43... Kf6 {[%clk 0:00:09.1]} 44. c6 {[%clk 0:00:44.3]} 44...
Ke7 {[%clk 0:00:07.5]} 45. b5 {[%clk 0:00:44.4]} 1-0

[Event "*** SCC Grand Prix: Titled Tuesday Blitz"]
[Site "Chess.com"]
[Date "2020.08.04"]
[Round "3"]
[White "Lupul_Cenusiu"]
[Black "Flopezin"]
[Result "1-0"]
[WhiteElo "2516"]
[BlackElo "2288"]
[TimeControl "180+1"]
[EndTime "14:12:49 PDT"]
[Termination "Lupul_Cenusiu won by resignation"]

1. d4 {[%clk 0:03:00.9]} 1... Nf6 {[%clk 0:02:59.3]} 2. c4 {[%clk 0:03:00.8]}
2... e6 {[%clk 0:02:58.9]} 3. Nc3 {[%clk 0:03:01.2]} 3... Bb4 {[%clk 0:02:58.9]}
4. Nf3 {[%clk 0:03:01.3]} 4... Bxc3+ {[%clk 0:02:57.3]} 5. bxc3 {[%clk
0:03:00.8]} 5... d6 {[%clk 0:02:58.2]} 6. Bg5 {[%clk 0:02:59.7]} 6... h6 {[%clk
0:02:56.4]} 7. Bh4 {[%clk 0:02:59.3]} 7... g5 {[%clk 0:02:56.8]} 8. Bg3 {[%clk
0:02:58.8]} 8... Ne4 {[%clk 0:02:57.3]} 9. Nd2 {[%clk 0:02:58.9]} 9... Nxg3
{[%clk 0:02:54.4]} 10. hxg3 {[%clk 0:02:58.4]} 10... Nd7 {[%clk 0:02:52.7]} 11.
e4 {[%clk 0:02:57.2]} 11... f5 {[%clk 0:02:49.6]} 12. Qh5+ {[%clk 0:02:54.3]}
12... Kf8 {[%clk 0:02:45.6]} 13. Bd3 {[%clk 0:02:52.3]} 13... Nf6 {[%clk
0:02:42.3]} 14. Qf3 {[%clk 0:02:52]} 14... fxe4 {[%clk 0:02:24.5]} 15. Nxe4
{[%clk 0:02:50.3]} 15... Kg7 {[%clk 0:02:25.1]} 16. g4 {[%clk 0:02:48.2]} 16...
Bd7 {[%clk 0:02:20.9]} 17. Ng3 {[%clk 0:02:43.4]} 17... Be8 {[%clk 0:02:19.9]}
18. Qe2 {[%clk 0:02:40]} 18... Bg6 {[%clk 0:02:13.8]} 19. Bxg6 {[%clk
0:02:34.3]} 19... Kxg6 {[%clk 0:02:13.7]} 20. O-O-O {[%clk 0:02:20]} 20... Qd7
{[%clk 0:02:03.9]} 21. Rde1 {[%clk 0:02:15.3]} 21... Rae8 {[%clk 0:02:04]} 22.
Kb2 {[%clk 0:02:11.1]} 22... Qc6 {[%clk 0:01:59.2]} 23. f3 {[%clk 0:02:08.2]}
23... a6 {[%clk 0:01:51.8]} 24. Qd3+ {[%clk 0:02:04.7]} 24... Kg7 {[%clk
0:01:51.3]} 25. Re2 {[%clk 0:02:00.4]} 25... b5 {[%clk 0:01:51.2]} 26. cxb5
{[%clk 0:02:00.1]} 26... axb5 {[%clk 0:01:48.6]} 27. Rhe1 {[%clk 0:01:58.8]}
27... Qd5 {[%clk 0:01:49]} 28. Ne4 {[%clk 0:01:55.7]} 28... Ra8 {[%clk
0:01:45.6]} 29. Kb1 {[%clk 0:01:49.9]} 29... Nxe4 {[%clk 0:01:24.4]} 30. fxe4
{[%clk 0:01:49.1]} 30... Qc4 {[%clk 0:01:23]} 31. Qxc4 {[%clk 0:01:48.6]} 31...
bxc4 {[%clk 0:01:23.9]} 32. Rf1 {[%clk 0:01:47.5]} 32... Rhf8 {[%clk 0:01:20.6]}
33. Rxf8 {[%clk 0:01:46.3]} 33... Kxf8 {[%clk 0:01:18.6]} 34. g3 {[%clk
0:01:44.3]} 34... Ke7 {[%clk 0:01:18.2]} 35. Rh2 {[%clk 0:01:43.7]} 35... Rf8
{[%clk 0:01:14.3]} 36. a4 {[%clk 0:01:42.6]} 36... Rf3 {[%clk 0:01:09.8]} 37.
Kb2 {[%clk 0:01:42.6]} 37... Rxg3 {[%clk 0:01:08.3]} 38. Rxh6 {[%clk 0:01:42.4]}
38... Rxg4 {[%clk 0:01:02.6]} 39. a5 {[%clk 0:01:42.4]} 39... Kd7 {[%clk
0:01:02.7]} 40. a6 {[%clk 0:01:38.2]} 40... Kc6 {[%clk 0:01:02.6]} 41. Rxe6
{[%clk 0:01:36.8]} 41... Kb6 {[%clk 0:01:03]} 42. e5 {[%clk 0:01:36.7]} 42...
Re4 {[%clk 0:00:56.7]} 43. Rg6 {[%clk 0:01:33]} 43... Kxa6 {[%clk 0:00:56]} 44.
exd6 {[%clk 0:01:32.7]} 44... cxd6 {[%clk 0:00:54.2]} 45. Ka3 {[%clk 0:01:32.1]}
45... Kb6 {[%clk 0:00:36.8]} 46. Rxd6+ {[%clk 0:01:28.3]} 46... Kc7 {[%clk
0:00:33.6]} 47. Rg6 {[%clk 0:01:25.9]} 47... Rg4 {[%clk 0:00:34.1]} 48. Kb4
{[%clk 0:01:25.4]} 48... Rg1 {[%clk 0:00:33.3]} 49. Kxc4 {[%clk 0:01:24.8]}
49... g4 {[%clk 0:00:34.2]} 50. Kc5 {[%clk 0:01:24.8]} 50... g3 {[%clk
0:00:34.4]} 51. d5 {[%clk 0:01:24.9]} 51... g2 {[%clk 0:00:32.3]} 52. Rg7+
{[%clk 0:01:24.5]} 52... Kd8 {[%clk 0:00:30.7]} 53. c4 {[%clk 0:01:24.6]} 53...
Ke8 {[%clk 0:00:26.4]} 54. d6 {[%clk 0:01:20.8]} 54... Kf8 {[%clk 0:00:21.9]}
55. Rg4 {[%clk 0:01:13.8]} 55... Ke8 {[%clk 0:00:19.3]} 56. Kc6 {[%clk
0:01:13.2]} 56... Rc1 {[%clk 0:00:13.6]} 57. d7+ {[%clk 0:01:12.1]} 57... Ke7
{[%clk 0:00:14]} 58. Rg7+ {[%clk 0:01:11.8]} 58... Kd8 {[%clk 0:00:12.2]} 59.
Rg8+ {[%clk 0:01:11.3]} 1-0